[Event "*** Titled Tuesday Blitz"]
[Site "Chess.com"]
[Date "2018.11.06"]
[Round "6"]
[White "Mikhail_Golubev"]
[Black "Lovkov_Roman"]
[Result "0-1"]
[WhiteElo "2439"]
[BlackElo "2610"]
[TimeControl "180+2"]
[EndTime "14:20:49 PST"]
[Termination "Lovkov_Roman won by resignation"]

1. e4 {[%clk 0:03:01.9]} 1... c6 {[%clk 0:02:59.9]} 2. d4 {[%clk 0:02:52.7]}
2... d5 {[%clk 0:03:00.8]} 3. Nc3 {[%clk 0:02:43.8]} 3... dxe4 {[%clk
0:03:01.4]} 4. Nxe4 {[%clk 0:02:44.6]} 4... Bf5 {[%clk 0:03:02.7]} 5. Ng3 {[%clk
0:02:45.6]} 5... Bg6 {[%clk 0:03:04]} 6. c3 {[%clk 0:02:46.5]} 6... e6 {[%clk
0:02:55.1]} 7. Nh3 {[%clk 0:02:43]} 7... Qc7 {[%clk 0:02:48.3]} 8. Nf4 {[%clk
0:02:42.6]} 8... Nf6 {[%clk 0:02:45.8]} 9. h4 {[%clk 0:02:41.6]} 9... Bd6 {[%clk
0:02:45]} 10. Qf3 {[%clk 0:02:40.8]} 10... Nbd7 {[%clk 0:02:43.9]} 11. h5 {[%clk
0:02:36.9]} 11... Bc2 {[%clk 0:02:44.6]} 12. h6 {[%clk 0:02:31.7]} 12... g6
{[%clk 0:02:44.5]} 13. Bd3 {[%clk 0:02:27.1]} 13... Bxd3 {[%clk 0:02:41.7]} 14.
Nxd3 {[%clk 0:02:27.4]} 14... Rg8 {[%clk 0:02:22]} 15. Bg5 {[%clk 0:02:21.4]}
15... Nd5 {[%clk 0:02:21.3]} 16. Ne4 {[%clk 0:02:18.1]} 16... f6 {[%clk
0:02:15.7]} 17. Qh3 {[%clk 0:01:40.3]} 17... Kf7 {[%clk 0:01:54.8]} 18. O-O-O
{[%clk 0:01:34.8]} 18... Rge8 {[%clk 0:01:45.5]} 19. Bd2 {[%clk 0:01:24.3]}
19... b5 {[%clk 0:01:39.1]} 20. Rhe1 {[%clk 0:01:16.1]} 20... a5 {[%clk
0:01:32.4]} 21. Re2 {[%clk 0:01:01.2]} 21... Bf8 {[%clk 0:01:20]} 22. Rde1
{[%clk 0:00:58.8]} 22... a4 {[%clk 0:01:10]} 23. g3 {[%clk 0:00:42.5]} 23... a3
{[%clk 0:01:10]} 24. b3 {[%clk 0:00:42.6]} 24... Ra6 {[%clk 0:00:40.9]} 25. Nf4
{[%clk 0:00:35.3]} 25... Nxf4 {[%clk 0:00:16.2]} 26. Bxf4 {[%clk 0:00:35.7]}
26... e5 {[%clk 0:00:16]} 27. dxe5 {[%clk 0:00:33.7]} 27... Nxe5 {[%clk
0:00:17.4]} 28. Nxf6 {[%clk 0:00:31.2]} 28... Nd3+ {[%clk 0:00:14.8]} 29. Kb1
{[%clk 0:00:25.4]} 29... Rxe2 {[%clk 0:00:14.1]} 30. Bxc7 {[%clk 0:00:17.6]}
30... Rb2+ {[%clk 0:00:15.1]} 31. Ka1 {[%clk 0:00:18.4]} 31... Nxe1 {[%clk
0:00:17]} 32. Qd7+ {[%clk 0:00:18.2]} 32... Be7 {[%clk 0:00:18.4]} 33. Qe8+
{[%clk 0:00:17.7]} 33... Kxf6 {[%clk 0:00:19.3]} 34. Be5+ {[%clk 0:00:17.3]}
34... Ke6 {[%clk 0:00:19.5]} 35. Qc8+ {[%clk 0:00:18]} 35... Kf7 {[%clk
0:00:20.1]} 0-1

[Event "*** Titled Tuesday Blitz"]
[Site "Chess.com"]
[Date "2018.11.06"]
[Round "6"]
[White "chessdjw"]
[Black "Samuray111"]
[Result "1-0"]
[WhiteElo "2603"]
[BlackElo "2596"]
[TimeControl "180+2"]
[EndTime "14:20:51 PST"]
[Termination "chessdjw won by resignation"]

1. d4 {[%clk 0:03:01.9]} 1... Nf6 {[%clk 0:02:59.5]} 2. c4 {[%clk 0:03:02.3]}
2... e6 {[%clk 0:03:00.4]} 3. Nf3 {[%clk 0:03:03]} 3... b6 {[%clk 0:03:01.2]} 4.
g3 {[%clk 0:03:04.1]} 4... Bb7 {[%clk 0:03:02.4]} 5. Bg2 {[%clk 0:03:04.7]} 5...
Be7 {[%clk 0:03:03.9]} 6. O-O {[%clk 0:03:05.8]} 6... O-O {[%clk 0:03:05.1]} 7.
Nc3 {[%clk 0:03:07]} 7... Ne4 {[%clk 0:03:06]} 8. Bd2 {[%clk 0:03:08.2]} 8...
Nxd2 {[%clk 0:03:07]} 9. Qxd2 {[%clk 0:03:09]} 9... d6 {[%clk 0:03:08.4]} 10. b4
{[%clk 0:03:06.8]} 10... a5 {[%clk 0:03:06.9]} 11. b5 {[%clk 0:03:06.5]} 11...
Nd7 {[%clk 0:03:07.6]} 12. e3 {[%clk 0:03:04.7]} 12... Bf6 {[%clk 0:02:59.6]}
13. Ne1 {[%clk 0:03:04.6]} 13... Qc8 {[%clk 0:02:59.7]} 14. a4 {[%clk
0:02:43.4]} 14... g6 {[%clk 0:02:58.4]} 15. Nd3 {[%clk 0:02:42.8]} 15... Bg7
{[%clk 0:02:58.7]} 16. Bc6 {[%clk 0:02:38.6]} 16... Nb8 {[%clk 0:02:48.9]} 17.
d5 {[%clk 0:02:36.5]} 17... e5 {[%clk 0:02:49.9]} 18. f4 {[%clk 0:02:34.1]}
18... Nd7 {[%clk 0:02:39.5]} 19. f5 {[%clk 0:02:28.2]} 19... e4 {[%clk
0:02:26.6]} 20. Nxe4 {[%clk 0:02:24.9]} 20... Bxc6 {[%clk 0:02:19.6]} 21. bxc6
{[%clk 0:02:24.1]} 21... Nf6 {[%clk 0:02:15.1]} 22. Nxf6+ {[%clk 0:01:38.4]}
22... Bxf6 {[%clk 0:02:16.9]} 23. Rae1 {[%clk 0:01:33.1]} 23... Qd8 {[%clk
0:02:11.9]} 24. e4 {[%clk 0:01:30.2]} 24... Re8 {[%clk 0:02:05.3]} 25. Kg2
{[%clk 0:01:29.6]} 25... Qe7 {[%clk 0:02:01.3]} 26. Qf2 {[%clk 0:01:27]} 26...
Kg7 {[%clk 0:02:00.5]} 27. Re3 {[%clk 0:00:54.2]} 27... Bg5 {[%clk 0:01:58.1]}
28. e5 {[%clk 0:00:41.4]} 28... dxe5 {[%clk 0:01:20]} 29. f6+ {[%clk 0:00:24.6]}
29... Qxf6 {[%clk 0:01:00.2]} 30. Rf3 {[%clk 0:00:25.9]} 30... Qd6 {[%clk
0:00:53.4]} 31. Rxf7+ {[%clk 0:00:25.5]} 31... Kg8 {[%clk 0:00:54.1]} 32. Rd7
{[%clk 0:00:24.4]} 32... Qf8 {[%clk 0:00:55.5]} 33. Qxf8+ {[%clk 0:00:15.9]}
33... Rxf8 {[%clk 0:00:57.3]} 34. Rxf8+ {[%clk 0:00:16.2]} 34... Rxf8 {[%clk
0:00:58.8]} 35. Nxe5 {[%clk 0:00:17.8]} 35... Be3 {[%clk 0:00:45.8]} 36. Rxc7
{[%clk 0:00:17.1]} 36... Rf2+ {[%clk 0:00:46.7]} 37. Kh3 {[%clk 0:00:18.3]}
37... Rd2 {[%clk 0:00:45.1]} 38. Rd7 {[%clk 0:00:19.2]} 38... Bg1 {[%clk
0:00:41.2]} 39. c7 {[%clk 0:00:20.3]} 39... Rxh2+ {[%clk 0:00:41.5]} 40. Kg4
{[%clk 0:00:21.6]} 1-0

[Event "*** Titled Tuesday Blitz"]
[Site "Chess.com"]
[Date "2018.11.06"]
[Round "6"]
[White "Gareth-Bale11"]
[Black "Rashad_Zeynalli"]
[Result "1-0"]
[WhiteElo "2601"]
[BlackElo "2387"]
[TimeControl "180+2"]
[EndTime "14:21:03 PST"]
[Termination "Gareth-Bale11 won by resignation"]

1. e4 {[%clk 0:03:00.1]} 1... e5 {[%clk 0:02:59.6]} 2. Nf3 {[%clk 0:02:53.6]}
2... Nc6 {[%clk 0:02:59.9]} 3. Bb5 {[%clk 0:02:50.6]} 3... Nf6 {[%clk
0:03:00.1]} 4. O-O {[%clk 0:02:49.7]} 4... Nxe4 {[%clk 0:03:00.2]} 5. Re1 {[%clk
0:02:49.3]} 5... Nd6 {[%clk 0:03:00.7]} 6. Nxe5 {[%clk 0:02:50.9]} 6... Nxe5
{[%clk 0:03:00.3]} 7. Rxe5+ {[%clk 0:02:51.9]} 7... Be7 {[%clk 0:03:01.8]} 8.
Bf1 {[%clk 0:02:53.1]} 8... O-O {[%clk 0:03:02.4]} 9. d4 {[%clk 0:02:54.4]} 9...
Bf6 {[%clk 0:03:03]} 10. Re1 {[%clk 0:02:55.1]} 10... Re8 {[%clk 0:03:04.3]} 11.
c3 {[%clk 0:02:53.6]} 11... Rxe1 {[%clk 0:03:02.5]} 12. Qxe1 {[%clk 0:02:55.5]}
12... Qe8 {[%clk 0:03:03.6]} 13. Qd1 {[%clk 0:02:52.4]} 13... Ne4 {[%clk
0:02:57.8]} 14. Bf4 {[%clk 0:02:52.7]} 14... c6 {[%clk 0:02:56.5]} 15. d5 {[%clk
0:02:53]} 15... Be5 {[%clk 0:02:50.5]} 16. Bxe5 {[%clk 0:02:32.4]} 16... Qxe5
{[%clk 0:02:52.4]} 17. Na3 {[%clk 0:02:32.8]} 17... cxd5 {[%clk 0:02:48.3]} 18.
Nb5 {[%clk 0:02:28.6]} 18... a6 {[%clk 0:02:49.1]} 19. Nd4 {[%clk 0:02:29.1]}
19... d6 {[%clk 0:02:50]} 20. f3 {[%clk 0:02:12.3]} 20... Nc5 {[%clk 0:02:46]}
21. Qd2 {[%clk 0:02:13]} 21... Bd7 {[%clk 0:02:43.9]} 22. Re1 {[%clk 0:02:14.1]}
22... Qf6 {[%clk 0:02:45.1]} 23. Nc2 {[%clk 0:02:09.1]} 23... Bc6 {[%clk
0:02:12.7]} 24. Nb4 {[%clk 0:02:05.8]} 24... Qf5 {[%clk 0:02:06.8]} 25. Re7
{[%clk 0:02:04.6]} 25... Kf8 {[%clk 0:02:00]} 26. Rc7 {[%clk 0:02:03.4]} 26...
Ne6 {[%clk 0:01:36.9]} 27. Rxc6 {[%clk 0:01:59.6]} 27... bxc6 {[%clk 0:01:34.2]}
28. Nxc6 {[%clk 0:02:01.5]} 28... a5 {[%clk 0:01:03]} 29. a4 {[%clk 0:02:01.1]}
29... Nc5 {[%clk 0:00:52.7]} 30. Bb5 {[%clk 0:02:00.3]} 30... Qb1+ {[%clk
0:00:49.1]} 31. Kf2 {[%clk 0:01:59.7]} 31... Re8 {[%clk 0:00:45.5]} 32. Nd4
{[%clk 0:01:50.3]} 32... Re5 {[%clk 0:00:41.9]} 33. h4 {[%clk 0:01:31.6]} 33...
Ne6 {[%clk 0:00:41.8]} 34. Nc6 {[%clk 0:01:30.3]} 34... Rh5 {[%clk 0:00:35.3]}
35. Nxa5 {[%clk 0:01:30.5]} 35... Rxh4 {[%clk 0:00:33.6]} 36. Qxd5 {[%clk
0:01:10.8]} 36... Qxb2+ {[%clk 0:00:30.7]} 37. Kg3 {[%clk 0:01:11.5]} 37... g5
{[%clk 0:00:25.2]} 38. Qxd6+ {[%clk 0:01:10.2]} 38... Kg8 {[%clk 0:00:24.2]} 39.
Qb8+ {[%clk 0:01:10.1]} 39... Kg7 {[%clk 0:00:24.4]} 40. Qe5+ {[%clk 0:01:10.9]}
40... Kf8 {[%clk 0:00:21.4]} 41. Nc6 {[%clk 0:01:02.8]} 41... Ke8 {[%clk
0:00:11.9]} 42. Nd4+ {[%clk 0:00:55.4]} 42... Ke7 {[%clk 0:00:08.7]} 43. Nf5+
{[%clk 0:00:56.4]} 43... Kd8 {[%clk 0:00:08.1]} 44. Qd6+ {[%clk 0:00:55.9]}
44... Kc8 {[%clk 0:00:08.2]} 45. Ba6+ {[%clk 0:00:57.4]} 1-0

[Event "*** Titled Tuesday Blitz"]
[Site "Chess.com"]
[Date "2018.11.06"]
[Round "6"]
[White "Pilopa"]
[Black "dhanushbharadwaj"]
[Result "0-1"]
[WhiteElo "2401"]
[BlackElo "2499"]
[TimeControl "180+2"]
[EndTime "14:21:17 PST"]
[Termination "dhanushbharadwaj won by resignation"]

1. d4 {[%clk 0:02:58.2]} 1... Nf6 {[%clk 0:03:00.5]} 2. c4 {[%clk 0:02:59]} 2...
g6 {[%clk 0:03:01.6]} 3. Nc3 {[%clk 0:02:59.5]} 3... Bg7 {[%clk 0:03:03.2]} 4.
e4 {[%clk 0:03:00.4]} 4... d6 {[%clk 0:03:04.8]} 5. Nf3 {[%clk 0:03:01.2]} 5...
O-O {[%clk 0:03:06.3]} 6. Be2 {[%clk 0:03:02.3]} 6... Na6 {[%clk 0:03:07.4]} 7.
Bf4 {[%clk 0:03:02]} 7... Nh5 {[%clk 0:03:05.4]} 8. Bg5 {[%clk 0:03:00.9]} 8...
h6 {[%clk 0:03:06.5]} 9. Be3 {[%clk 0:03:01.6]} 9... e5 {[%clk 0:03:07]} 10. Qd2
{[%clk 0:02:42.3]} 10... Re8 {[%clk 0:03:01.5]} 11. d5 {[%clk 0:02:36.4]} 11...
Nf4 {[%clk 0:02:57.1]} 12. Bxf4 {[%clk 0:02:27.4]} 12... exf4 {[%clk 0:02:59]}
13. Qxf4 {[%clk 0:02:28.3]} 13... Nc5 {[%clk 0:02:58.7]} 14. Nd2 {[%clk
0:02:26.7]} 14... h5 {[%clk 0:02:36]} 15. O-O {[%clk 0:02:07.9]} 15... Be5
{[%clk 0:02:31.5]} 16. Qe3 {[%clk 0:02:05.2]} 16... Qf6 {[%clk 0:02:27.6]} 17.
Bf3 {[%clk 0:01:29.5]} 17... Bg4 {[%clk 0:02:15.9]} 18. Rfe1 {[%clk 0:01:11.1]}
18... Bf4 {[%clk 0:02:04.9]} 19. Qe2 {[%clk 0:01:08.9]} 19... Bxd2 {[%clk
0:02:05.6]} 20. Qxd2 {[%clk 0:01:08.2]} 20... Bxf3 {[%clk 0:02:06.9]} 21. gxf3
{[%clk 0:01:09.6]} 21... Qxf3 {[%clk 0:02:08.8]} 22. Re3 {[%clk 0:01:10.9]}
22... Qg4+ {[%clk 0:02:06.1]} 23. Rg3 {[%clk 0:00:56]} 23... Nxe4 {[%clk
0:02:04.2]} 24. Rxg4 {[%clk 0:00:56.7]} 24... Nxd2 {[%clk 0:02:05.3]} 25. Rf4
{[%clk 0:00:57.9]} 25... Re5 {[%clk 0:01:55]} 26. Rd1 {[%clk 0:00:52.6]} 26...
g5 {[%clk 0:01:56.1]} 27. Rf6 {[%clk 0:00:42.7]} 27... Kg7 {[%clk 0:01:56.9]}
28. Rxf7+ {[%clk 0:00:41.7]} 28... Kxf7 {[%clk 0:01:57.8]} 29. Rxd2 {[%clk
0:00:42.9]} 29... Rae8 {[%clk 0:01:58.6]} 30. Kg2 {[%clk 0:00:43.1]} 30... a6
{[%clk 0:01:59.2]} 31. b4 {[%clk 0:00:37.8]} 31... Kg6 {[%clk 0:01:57.9]} 32. a4
{[%clk 0:00:38.4]} 32... g4 {[%clk 0:01:58.2]} 33. h3 {[%clk 0:00:31.2]} 33...
Kg5 {[%clk 0:01:58.2]} 34. hxg4 {[%clk 0:00:31.9]} 34... hxg4 {[%clk 0:01:59.5]}
35. a5 {[%clk 0:00:31.4]} 35... Rf5 {[%clk 0:01:58.2]} 36. Rd4 {[%clk
0:00:25.2]} 36... Rf4 {[%clk 0:01:56.9]} 37. Rxf4 {[%clk 0:00:18.2]} 37... Kxf4
{[%clk 0:01:58.8]} 38. c5 {[%clk 0:00:18.4]} 38... Kf5 {[%clk 0:01:53.7]} 39.
Kg3 {[%clk 0:00:18.1]} 39... Re1 {[%clk 0:01:53.7]} 40. b5 {[%clk 0:00:15.9]}
40... Rc1 {[%clk 0:01:49.2]} 41. Ne2 {[%clk 0:00:11.3]} 41... Rxc5 {[%clk
0:01:47.6]} 42. bxa6 {[%clk 0:00:12.1]} 42... bxa6 {[%clk 0:01:48.3]} 43. Nd4+
{[%clk 0:00:14]} 43... Ke5 {[%clk 0:01:49.2]} 44. Ne6 {[%clk 0:00:15.9]} 44...
Rc3+ {[%clk 0:01:50.2]} 45. Kxg4 {[%clk 0:00:16.9]} 45... Kxd5 {[%clk
0:01:51.7]} 46. Nf4+ {[%clk 0:00:18.3]} 46... Ke5 {[%clk 0:01:52.5]} 47. Ng6+
{[%clk 0:00:18.8]} 47... Kf6 {[%clk 0:01:52.9]} 48. Nf4 {[%clk 0:00:19.8]} 48...
Rc4 {[%clk 0:01:54.1]} 49. Kg3 {[%clk 0:00:19.6]} 49... Kf5 {[%clk 0:01:51.9]}
50. Nd5 {[%clk 0:00:19.3]} 50... Rc5 {[%clk 0:01:51]} 51. Ne3+ {[%clk
0:00:18.8]} 51... Ke4 {[%clk 0:01:51.9]} 52. Ng4 {[%clk 0:00:19.7]} 52... Rxa5
{[%clk 0:01:52.3]} 53. Nf6+ {[%clk 0:00:18.7]} 53... Kf5 {[%clk 0:01:53]} 54.
Ng4 {[%clk 0:00:18.9]} 54... Ra3+ {[%clk 0:01:53.2]} 55. Ne3+ {[%clk 0:00:20.1]}
55... Rxe3+ {[%clk 0:01:53.7]} 56. fxe3 {[%clk 0:00:21.1]} 56... Ke4 {[%clk
0:01:55.6]} 57. Kf2 {[%clk 0:00:22.2]} 57... a5 {[%clk 0:01:57.5]} 58. Ke2
{[%clk 0:00:23]} 58... a4 {[%clk 0:01:58.9]} 59. Kd2 {[%clk 0:00:24.2]} 59... a3
{[%clk 0:02:00.8]} 60. Kc2 {[%clk 0:00:24.8]} 60... Kxe3 {[%clk 0:02:02.7]} 61.
Kb3 {[%clk 0:00:25.4]} 61... d5 {[%clk 0:02:04.6]} 62. Kxa3 {[%clk 0:00:27]}
62... d4 {[%clk 0:02:06.5]} 63. Kb2 {[%clk 0:00:28.9]} 63... d3 {[%clk
0:02:07.5]} 64. Kc1 {[%clk 0:00:30.8]} 64... Ke2 {[%clk 0:02:09]} 0-1

[Event "*** Titled Tuesday Blitz"]
[Site "Chess.com"]
[Date "2018.11.06"]
[Round "6"]
[White "GianmarcoVaR"]
[Black "JonahWillow"]
[Result "1-0"]
[WhiteElo "2552"]
[BlackElo "2683"]
[TimeControl "180+2"]
[EndTime "14:21:23 PST"]
[Termination "GianmarcoVaR won by resignation"]

1. d4 {[%clk 0:03:01.9]} 1... Nf6 {[%clk 0:03:01]} 2. c4 {[%clk 0:03:03]} 2...
c5 {[%clk 0:03:01.5]} 3. d5 {[%clk 0:03:03.9]} 3... e6 {[%clk 0:03:03.2]} 4. Nc3
{[%clk 0:03:05.2]} 4... exd5 {[%clk 0:03:04.7]} 5. cxd5 {[%clk 0:03:06.7]} 5...
d6 {[%clk 0:03:06.6]} 6. Nf3 {[%clk 0:03:07.7]} 6... g6 {[%clk 0:03:07.9]} 7.
Nd2 {[%clk 0:03:08.8]} 7... Bg7 {[%clk 0:03:05.7]} 8. a4 {[%clk 0:03:09.9]} 8...
O-O {[%clk 0:02:48.1]} 9. e4 {[%clk 0:03:10.9]} 9... a6 {[%clk 0:02:49.3]} 10.
Be2 {[%clk 0:03:11.3]} 10... Re8 {[%clk 0:02:50.9]} 11. O-O {[%clk 0:03:10.5]}
11... Nbd7 {[%clk 0:02:52.4]} 12. Re1 {[%clk 0:03:03.2]} 12... Ne5 {[%clk
0:02:52.3]} 13. f4 {[%clk 0:02:46.6]} 13... Neg4 {[%clk 0:02:47.8]} 14. Nc4
{[%clk 0:02:36.1]} 14... Nxe4 {[%clk 0:02:37.1]} 15. Bxg4 {[%clk 0:02:09.6]}
15... Nxc3 {[%clk 0:02:34]} 16. bxc3 {[%clk 0:01:56.4]} 16... Bxg4 {[%clk
0:02:28.1]} 17. Rxe8+ {[%clk 0:01:33.4]} 17... Qxe8 {[%clk 0:02:30]} 18. Qd2
{[%clk 0:01:34.7]} 18... Qe7 {[%clk 0:02:01.2]} 19. h3 {[%clk 0:01:07.5]} 19...
Bf5 {[%clk 0:01:50.1]} 20. Ne3 {[%clk 0:00:52.5]} 20... Be4 {[%clk 0:01:46.2]}
21. Bb2 {[%clk 0:00:53.2]} 21... Re8 {[%clk 0:01:45.8]} 22. a5 {[%clk
0:00:37.4]} 22... f5 {[%clk 0:01:37.4]} 23. Ra3 {[%clk 0:00:35.9]} 23... Qh4
{[%clk 0:01:28.6]} 24. Qf2 {[%clk 0:00:33.2]} 24... Qd8 {[%clk 0:01:20.2]} 25.
c4 {[%clk 0:00:33.2]} 25... h5 {[%clk 0:00:56.4]} 26. Bxg7 {[%clk 0:00:27]}
26... Kxg7 {[%clk 0:00:58.3]} 27. Rb3 {[%clk 0:00:21.3]} 27... Re7 {[%clk
0:00:50.4]} 28. Qb2+ {[%clk 0:00:21.7]} 28... Kh6 {[%clk 0:00:45.4]} 29. Qf6
{[%clk 0:00:17.5]} 29... Qe8 {[%clk 0:00:34.6]} 30. Qxd6 {[%clk 0:00:13.3]}
30... Bd3 {[%clk 0:00:26.5]} 31. Rxd3 {[%clk 0:00:03.1]} 31... Rxe3 {[%clk
0:00:27]} 32. Rxe3 {[%clk 0:00:04.6]} 32... Qxe3+ {[%clk 0:00:28.9]} 33. Kh2
{[%clk 0:00:06]} 33... h4 {[%clk 0:00:21.2]} 34. Qe5 {[%clk 0:00:07.2]} 34...
Qg3+ {[%clk 0:00:21.8]} 35. Kg1 {[%clk 0:00:08.5]} 35... Kh7 {[%clk 0:00:16.4]}
36. d6 {[%clk 0:00:06.6]} 36... Qa3 {[%clk 0:00:06.8]} 37. Qe7+ {[%clk 0:00:07]}
37... Kh6 {[%clk 0:00:07.6]} 38. Qxh4+ {[%clk 0:00:07.9]} 38... Kg7 {[%clk
0:00:08.7]} 39. Qe7+ {[%clk 0:00:08.9]} 39... Kh6 {[%clk 0:00:09.8]} 40. Kh2
{[%clk 0:00:09.8]} 40... Qc1 {[%clk 0:00:08.2]} 41. Qg5+ {[%clk 0:00:09.3]}
41... Kg7 {[%clk 0:00:09.7]} 42. d7 {[%clk 0:00:09.7]} 1-0

[Event "*** Titled Tuesday Blitz"]
[Site "Chess.com"]
[Date "2018.11.06"]
[Round "6"]
[White "ZeroRealtorFade"]
[Black "Blagorod"]
[Result "1-0"]
[WhiteElo "2226"]
[BlackElo "2074"]
[TimeControl "180+2"]
[EndTime "14:21:37 PST"]
[Termination "ZeroRealtorFade won by resignation"]

1. d4 {[%clk 0:03:00.5]} 1... d5 {[%clk 0:03:00.7]} 2. Bf4 {[%clk 0:03:01.5]}
2... Nf6 {[%clk 0:02:50.7]} 3. e3 {[%clk 0:03:02.4]} 3... e6 {[%clk 0:02:51]} 4.
c3 {[%clk 0:03:03.4]} 4... c5 {[%clk 0:02:51.6]} 5. Nd2 {[%clk 0:03:04.3]} 5...
c4 {[%clk 0:02:51.8]} 6. e4 {[%clk 0:03:02]} 6... Nc6 {[%clk 0:02:42.5]} 7. e5
{[%clk 0:02:54.8]} 7... Nd7 {[%clk 0:02:40.6]} 8. Ngf3 {[%clk 0:02:43.3]} 8...
b5 {[%clk 0:02:40.9]} 9. Ng5 {[%clk 0:02:33.2]} 9... g6 {[%clk 0:02:18.1]} 10.
Qf3 {[%clk 0:02:23.4]} 10... Bg7 {[%clk 0:02:15.4]} 11. Nxf7 {[%clk 0:02:10.1]}
11... Kxf7 {[%clk 0:02:09.7]} 12. Bg5+ {[%clk 0:02:07.2]} 12... Nf6 {[%clk
0:02:03.9]} 13. a4 {[%clk 0:01:48.2]} 13... b4 {[%clk 0:02:01.7]} 14. Nxc4
{[%clk 0:01:31.9]} 14... Rf8 {[%clk 0:01:44.1]} 15. exf6 {[%clk 0:01:15.2]}
15... Bxf6 {[%clk 0:01:42.3]} 16. Bh6 {[%clk 0:01:01.1]} 16... Rg8 {[%clk
0:01:26.8]} 17. Ne5+ {[%clk 0:00:57.4]} 17... Nxe5 {[%clk 0:01:22.2]} 18. dxe5
{[%clk 0:00:59.2]} 18... bxc3 {[%clk 0:01:23.7]} 19. bxc3 {[%clk 0:00:47.4]}
19... g5 {[%clk 0:01:24.7]} 20. h4 {[%clk 0:00:40.4]} 20... g4 {[%clk
0:01:15.7]} 21. Qxf6+ {[%clk 0:00:22.5]} 21... Qxf6 {[%clk 0:01:16.3]} 22. exf6
{[%clk 0:00:24.4]} 22... Kxf6 {[%clk 0:01:17.9]} 23. Bd3 {[%clk 0:00:19.9]}
23... Kf7 {[%clk 0:01:08.2]} 24. O-O {[%clk 0:00:18.3]} 24... e5 {[%clk
0:01:05.1]} 25. c4 {[%clk 0:00:12.8]} 25... e4 {[%clk 0:01:01.7]} 26. Bc2 {[%clk
0:00:13.6]} 26... Be6 {[%clk 0:00:52.6]} 27. cxd5 {[%clk 0:00:13.9]} 27... Bxd5
{[%clk 0:00:53.8]} 28. Rad1 {[%clk 0:00:13.9]} 28... Bc6 {[%clk 0:00:49.8]} 29.
Rd6 {[%clk 0:00:12.5]} 29... Rg6 {[%clk 0:00:41.5]} 30. Rfd1 {[%clk 0:00:12.3]}
30... Rc8 {[%clk 0:00:34.6]} 31. h5 {[%clk 0:00:11.5]} 31... Rxd6 {[%clk
0:00:22.1]} 32. Rxd6 {[%clk 0:00:13.4]} 32... a5 {[%clk 0:00:21.6]} 33. Bb3+
{[%clk 0:00:13.5]} 33... Ke7 {[%clk 0:00:22.2]} 34. Re6+ {[%clk 0:00:14.3]}
34... Kd7 {[%clk 0:00:22.3]} 35. Bf4 {[%clk 0:00:14.7]} 35... Kd8 {[%clk
0:00:17.1]} 36. Rh6 {[%clk 0:00:13.1]} 36... e3 {[%clk 0:00:15.9]} 37. fxe3
{[%clk 0:00:12.5]} 37... Be4 {[%clk 0:00:15.3]} 38. Bg5+ {[%clk 0:00:10.8]}
38... Ke8 {[%clk 0:00:14.8]} 39. Re6+ {[%clk 0:00:11.6]} 39... Kf8 {[%clk
0:00:14.8]} 40. Rxe4 {[%clk 0:00:13.3]} 40... Rc1+ {[%clk 0:00:15.7]} 41. Kh2
{[%clk 0:00:14.3]} 41... Rb1 {[%clk 0:00:16.6]} 42. Bd5 {[%clk 0:00:14.9]} 42...
Rb4 {[%clk 0:00:14.3]} 43. Rxb4 {[%clk 0:00:15.4]} 43... axb4 {[%clk 0:00:14.8]}
44. a5 {[%clk 0:00:16.4]} 1-0

[Event "*** Titled Tuesday Blitz"]
[Site "Chess.com"]
[Date "2018.11.06"]
[Round "6"]
[White "Pudor"]
[Black "volcanoexplorer"]
[Result "1-0"]
[WhiteElo "2331"]
[BlackElo "2460"]
[TimeControl "180+2"]
[EndTime "14:21:40 PST"]
[Termination "Pudor won by resignation"]

1. d4 {[%clk 0:03:01.9]} 1... Nf6 {[%clk 0:03:00.8]} 2. c4 {[%clk 0:03:01.8]}
2... e6 {[%clk 0:03:02.2]} 3. Nc3 {[%clk 0:03:02.1]} 3... Bb4 {[%clk 0:03:03]}
4. Qc2 {[%clk 0:03:02.6]} 4... O-O {[%clk 0:03:03.1]} 5. a3 {[%clk 0:03:03.1]}
5... Bxc3+ {[%clk 0:03:00.9]} 6. Qxc3 {[%clk 0:03:05]} 6... Qe8 {[%clk
0:03:02.5]} 7. g3 {[%clk 0:02:56]} 7... d6 {[%clk 0:03:02.1]} 8. Bg2 {[%clk
0:02:56.5]} 8... e5 {[%clk 0:02:51]} 9. Bg5 {[%clk 0:02:50.6]} 9... Nfd7 {[%clk
0:02:50.9]} 10. dxe5 {[%clk 0:02:38.1]} 10... Nxe5 {[%clk 0:02:33.1]} 11. Nf3
{[%clk 0:02:34.1]} 11... Nbc6 {[%clk 0:02:27.9]} 12. Nxe5 {[%clk 0:02:27]} 12...
Nxe5 {[%clk 0:02:21.7]} 13. O-O {[%clk 0:02:25.6]} 13... h6 {[%clk 0:02:02.6]}
14. Be3 {[%clk 0:02:22.7]} 14... Ng4 {[%clk 0:02:00.6]} 15. Bd4 {[%clk
0:02:22.6]} 15... f6 {[%clk 0:01:54.7]} 16. h3 {[%clk 0:02:15.4]} 16... Ne5
{[%clk 0:01:55.5]} 17. b4 {[%clk 0:02:11.6]} 17... c6 {[%clk 0:01:55.2]} 18. e4
{[%clk 0:02:05.6]} 18... Be6 {[%clk 0:01:55]} 19. c5 {[%clk 0:01:59.7]} 19...
Nf7 {[%clk 0:01:47.6]} 20. Rad1 {[%clk 0:01:49.3]} 20... d5 {[%clk 0:01:29.1]}
21. Rfe1 {[%clk 0:01:48.1]} 21... Qd7 {[%clk 0:01:18.2]} 22. Kh2 {[%clk
0:01:31.5]} 22... a6 {[%clk 0:01:07.4]} 23. f4 {[%clk 0:01:24.6]} 23... Nd8
{[%clk 0:00:37.1]} 24. Be3 {[%clk 0:00:56.1]} 24... f5 {[%clk 0:00:32]} 25. exd5
{[%clk 0:00:54.7]} 25... cxd5 {[%clk 0:00:15.5]} 26. Bd4 {[%clk 0:00:43.6]}
26... Rf7 {[%clk 0:00:08.5]} 27. Be5 {[%clk 0:00:42.3]} 27... Rc8 {[%clk
0:00:04.5]} 28. Qd2 {[%clk 0:00:31.7]} 28... Nc6 {[%clk 0:00:04.7]} 29. Bd6
{[%clk 0:00:32.9]} 29... d4 {[%clk 0:00:04.5]} 30. Re2 {[%clk 0:00:22]} 30...
Bc4 {[%clk 0:00:05.5]} 31. Ree1 {[%clk 0:00:18.3]} 31... d3 {[%clk 0:00:06.5]}
32. Qc3 {[%clk 0:00:18.3]} 32... Bb5 {[%clk 0:00:03.7]} 33. a4 {[%clk
0:00:19.4]} 33... Bxa4 {[%clk 0:00:04.4]} 34. Rxd3 {[%clk 0:00:20.3]} 34... Kh7
{[%clk 0:00:05.4]} 35. Rde3 {[%clk 0:00:20.9]} 35... Bb5 {[%clk 0:00:05.6]} 36.
Bd5 {[%clk 0:00:21.5]} 36... Rf6 {[%clk 0:00:04]} 37. Be6 {[%clk 0:00:22.2]}
37... Rxe6 {[%clk 0:00:04.3]} 38. Rxe6 {[%clk 0:00:22.8]} 38... Rg8 {[%clk
0:00:06.2]} 39. Qc2 {[%clk 0:00:22.7]} 39... Qf7 {[%clk 0:00:07.2]} 40. R1e3
{[%clk 0:00:21.8]} 40... Nd4 {[%clk 0:00:08.4]} 41. Qa2 {[%clk 0:00:19.8]} 41...
Bd7 {[%clk 0:00:09.3]} 42. Rxh6+ {[%clk 0:00:18.7]} 42... gxh6 {[%clk
0:00:05.3]} 43. Qxf7+ {[%clk 0:00:19.4]} 43... Rg7 {[%clk 0:00:07.2]} 44. Qf6
{[%clk 0:00:19]} 44... Nc6 {[%clk 0:00:06.7]} 45. Be5 {[%clk 0:00:17.5]} 45...
Nxe5 {[%clk 0:00:05.1]} 46. Rxe5 {[%clk 0:00:18.4]} 46... Bc8 {[%clk 0:00:06]}
47. Re7 {[%clk 0:00:19.2]} 47... Rxe7 {[%clk 0:00:06.4]} 48. Qxe7+ {[%clk
0:00:21.1]} 48... Kg6 {[%clk 0:00:08.1]} 49. Qc7 {[%clk 0:00:22.4]} 1-0